bitfinex-derivatives/quotes_SOLF0:USTF0_20250716
["timestamp","ask_amount","ask_price","bid_price","bid_amount"]
[1752691475980,3.33,174.27,174.25,4.14110886]
[1752691477872,3.33,174.27,174.25,4.58110886]
[1752691478071,4.14110886,174.34,174.25,4.58110886]
[1752691478277,4.14110886,174.34,174.27,0.44]
[1752691478480,12.8091168,174.38,174.29,4.14110886]
[1752691478675,3.33,174.32,174.29,9.87460886]
[1752691478881,3.33,174.32,174.29,4.58110886]
[1752691479381,3.33,174.32,174.29,10.31480886]
[1752691479578,3.33,174.32,174.29,4.58110886]
[1752691479785,3.33,174.32,174.31,4.14110886]
[1752691482879,12.8091168,174.38,174.31,4.58110886]
[1752691483080,18.5361168,174.39,174.33,4.14110886]
[1752691483385,12.8091168,174.39,174.33,4.14110886]
[1752691484883,12.8091168,174.39,174.32,13.08390886]
[1752691485080,3.33,174.34,174.32,3.21]
[1752691485276,3.33,174.34,174.32,7.35110886]
[1752691486482,3.33,174.36,174.32,4.14110886]
[1752691486787,3.22,174.35,174.34,7.35110886]
[1752691486980,3.22,174.35,174.34,13.08310886]
[1752691487480,3.22,174.38,174.35,3.1]
[1752691487882,5.731,174.38,174.35,8.8318]
[1752691488080,3.22,174.37,174.35,8.8318]
[1752691488277,3.22,174.37,174.34,9.87300886]
[1752691488483,3.22,174.37,174.34,12.97300886]
[1752691489079,8.9513,174.37,174.34,7.24110886]
[1752691489283,3.22,174.36,174.34,4.14110886]
[1752691490489,8.9517,174.36,174.34,4.14110886]
[1752691490688,3.22,174.35,174.34,4.14110886]
[1752691491691,8.9518,174.35,174.34,4.14110886]
[1752691494889,8.9518,174.35,174.34,0.94487986]
[1752691495091,8.9518,174.35,174.26,239.0]
[1752691495287,3.22,174.34,174.33,4.14110886]
[1752691499101,3.22,174.34,174.33,9.87360886]
[1752691499299,3.22,174.34,174.33,12.97360886]
[1752691500100,3.22,174.34,174.33,7.24110886]
[1752691500301,3.22,174.34,174.33,4.14110886]
[1752691501200,3.22,174.34,174.33,12.97360886]
[1752691501697,12.8091168,174.4,174.34,3.1]
[1752691501900,3.22,174.39,174.38,7.24110886]
[1752691502202,3.22,174.39,174.38,3.1]
[1752691502401,3.22,174.4,174.38,3.1]
[1752691502606,3.22,174.4,174.38,8.8308]
[1752691503102,3.22,174.39,174.38,4.14110886]
[1752691503604,3.22,174.39,174.38,7.24110886]
[1752691504203,3.22,174.39,174.38,12.97190886]
[1752691505904,3.22,174.39,174.38,9.87190886]
[1752691506094,3.22,174.39,174.38,12.97190886]
[1752691507906,3.22,174.39,174.38,9.87190886]
[1752691510801,3.22,174.39,174.38,12.97190886]
[1752691511298,3.22,174.39,174.37,4.14110886]
[1752691511804,3.22,174.38,174.37,4.14110886]
[1752691512398,8.9508,174.38,174.37,4.14110886]
[1752691512705,3.22,174.38,174.29,3.1]
[1752691512907,5.7327,174.33,174.3,4.14110886]
[1752691513108,3.22,174.32,174.3,4.14110886]
[1752691513310,3.22,174.32,174.3,7.24110886]
[1752691513512,8.9529,174.32,174.3,7.24110886]
[1752691513707,3.22,174.31,174.3,7.24110886]
[1752691514009,3.22,174.31,174.3,12.97450886]
[1752691514211,3.22,174.31,174.3,7.24110886]
[1752691514609,3.22,174.31,174.29,4.14110886]
[1752691515022,3.22,174.31,174.25,3.1]
[1752691515216,3.22,174.29,174.25,4.14110886]
[1752691515616,3.22,174.29,174.25,3.1]
[1752691515913,3.22,174.29,174.26,3.1]
[1752691516419,3.22,174.29,174.25,7.24110886]
[1752691516614,3.22,174.29,174.25,3.1]
[1752691516914,3.33,174.3,174.27,4.14110886]
[1752691517115,12.80232297,174.33,174.29,4.14110886]
[1752691517409,12.80232297,174.33,174.29,7.31110886]
[1752691517410,3.33,174.32,174.29,7.31110886]
[1752691517616,3.33,174.31,174.3,3.17]
[1752691519217,3.33,174.31,174.3,8.9035]
[1752691520514,3.33,174.34,174.31,3.17]
[1752691520714,3.33,174.34,174.31,4.14110886]
[1752691520915,3.33,174.33,174.32,3.17]
[1752691521118,3.33,174.33,174.29,4.14110886]
[1752691521317,3.33,174.32,174.27,4.14110886]
[1752691521516,3.33,174.3,174.25,4.14110886]
[1752691521712,3.33,174.28,174.25,7.31110886]
[1752691522121,5.734,174.29,174.25,9.87600886]
[1752691522315,16.13232297,174.3,174.27,4.14110886]
[1752691522525,3.33,174.29,174.28,3.17]
[1752691522923,3.33,174.29,174.26,4.14110886]
[1752691523223,3.33,174.3,174.27,5.7344]
[1752691523821,3.33,174.3,174.28,5.734]
[1752691524017,18.53552297,174.31,174.28,4.14110886]
[1752691524018,3.33,174.29,174.28,4.14110886]
[1752691524221,3.33,174.3,174.28,4.14110886]
[1752691524526,3.33,174.3,174.28,9.87500886]
[1752691524927,3.33,174.3,174.28,4.14110886]
[1752691525129,3.33,174.29,174.28,4.14110886]
[1752691525525,3.33,174.29,174.26,5.7345]
[1752691525725,3.33,174.29,174.26,4.14110886]
[1752691526029,3.33,174.29,174.23,1.33]
[1752691526227,5.7339,174.29,174.25,9.87590886]
[1752691526526,3.33,174.28,174.25,5.7348]
[1752691526720,3.33,174.28,174.25,9.87590886]
[1752691526921,3.33,174.28,174.26,5.7347]
[1752691527233,3.33,174.28,174.25,4.14110886]
[1752691527533,3.33,174.24,174.2,9.87760886]
[1752691527723,3.33,174.24,174.22,4.14110886]
[1752691528127,3.33,174.24,174.21,5.7363]
[1752691528426,3.33,174.24,174.21,9.87740886]
[1752691529027,3.33,174.24,174.21,4.14110886]
[1752691529429,3.33,174.23,174.21,4.14110886]
[1752691529730,3.33,174.23,174.2,5.7366]
[1752691530127,3.33,174.23,174.19,90.0853554]
[1752691530326,3.33,174.27,174.19,94.22646426]
[1752691530725,3.33,174.27,174.19,99.96336426]
[1752691530926,3.33,174.27,174.21,4.14110886]
[1752691531329,3.33,174.23,174.21,4.14110886]
[1752691531729,4.14110886,174.28,174.21,4.14110886]
[1752691531929,3.33,174.22,174.21,4.14110886]
[1752691534234,12.80232297,174.29,174.21,9.87750886]
[1752691534441,16.94343183,174.3,174.21,13.04750886]
[1752691534934,5.7355,174.24,174.21,13.04750886]
[1752691535134,5.7355,174.24,174.21,7.31110886]
[1752691535728,15.60630886,174.33,174.19,98.9924554]
[1752691535729,5.7358,174.23,174.19,98.9924554]
[1752691535929,4.14110886,174.28,174.2,4.14110886]
[1752691536131,16.94343183,174.28,174.2,3.17]
[1752691536337,5.7351,174.25,174.2,4.14110886]
[1752691536630,3.33,174.23,174.22,3.17]
[1752691536935,3.33,174.23,174.22,7.31110886]
[1752691537133,3.33,174.25,174.22,7.31110886]
[1752691537335,3.33,174.24,174.23,3.17]
[1752691537530,3.33,174.24,174.22,4.14110886]
[1752691537725,3.33,174.24,174.2,4.14110886]
[1752691538132,3.33,174.22,174.2,4.14110886]
[1752691539130,3.33,174.21,174.19,90.0853554]
[1752691540639,3.33,174.21,174.19,95.8223554]
[1752691540836,3.33,174.2,174.19,98.9923554]
[1752691541032,16.94343183,174.28,174.19,97.39646426]
[1752691541235,5.7361,174.22,174.19,99.96336426]
[1752691541541,5.7361,174.22,174.19,90.0853554]
[1752691541734,3.33,174.21,174.19,90.0853554]
[1752691542037,3.33,174.2,174.19,90.0853554]
[1752691542434,3.33,174.2,174.19,98.9924554]
[1752691542636,12.80232297,174.26,174.2,3.17]
[1752691542830,12.80232297,174.26,174.19,90.0853554]
[1752691542831,12.80232297,174.27,174.22,9.87690886]
[1752691543030,3.33,174.24,174.23,3.17]
[1752691543327,12.80232297,174.29,174.23,3.17]
[1752691543533,3.33,174.25,174.24,13.04630886]
[1752691543740,3.33,174.28,174.24,4.14110886]
[1752691543935,3.33,174.27,174.26,3.17]
[1752691544139,3.33,174.26,174.25,3.17]
[1752691544941,3.33,174.26,174.25,8.9051]
[1752691545536,3.33,174.25,174.24,7.31110886]
[1752691545741,3.33,174.25,174.24,4.14110886]
[1752691546041,3.33,174.25,174.22,7.31110886]
[1752691546247,3.33,174.25,174.2,7.31110886]
[1752691546540,3.33,174.25,174.22,7.31110886]
[1752691546741,3.24,174.28,174.25,3.16]
[1752691547041,8.9743,174.28,174.26,4.14110886]
[1752691547341,3.24,174.28,174.26,4.14110886]
[1752691547541,5.7347,174.27,174.24,4.14110886]
[1752691547734,3.24,174.25,174.24,7.30110886]
[1752691548144,3.24,174.25,174.24,13.03650886]
[1752691553549,3.24,174.25,174.24,9.87650886]
[1752691553745,3.24,174.25,174.24,4.14110886]
[1752691554350,3.24,174.25,174.24,7.30110886]
[1752691554646,3.24,174.25,174.24,13.03650886]
[1752691555850,3.24,174.28,174.24,4.14110886]
[1752691556056,16.04232297,174.29,174.27,4.14110886]
[1752691556249,3.24,174.29,174.27,0.9191187]
[1752691556454,3.24,174.28,174.27,6.6536187]
[1752691557156,3.24,174.28,174.27,9.87560886]
[1752691558153,3.24,174.28,174.27,13.03560886]
[1752691558760,3.24,174.28,174.27,8.8945]
[1752691558951,3.24,174.28,174.27,13.03560886]
[1752691559846,3.24,174.29,174.28,3.16]
[1752691560057,3.24,174.29,174.28,7.30110886]
[1752691560366,3.24,174.29,174.28,4.14110886]
[1752691563968,3.24,174.28,174.27,8.8942]
[1752691564171,3.24,174.28,174.27,13.03530886]
[1752691566166,3.24,174.28,174.27,2.8593192]
[1752691567067,3.24,174.28,174.27,8.5935192]
[1752691567263,3.24,174.28,174.2,179.58]
[1752691567465,3.24,174.28,174.27,4.14110886]
[1752691568269,3.24,174.28,174.26,5.7345]
[1752691568567,3.24,174.28,174.26,9.87560886]
[1752691569564,3.24,174.28,174.25,7.245]
[1752691569765,8.9742,174.28,174.26,4.14110886]
[1752691569972,3.24,174.27,174.26,4.14110886]
[1752691570573,3.24,174.27,174.26,9.87590886]
[1752691571471,3.24,174.27,174.26,11.38590886]
[1752691571867,3.24,174.27,174.26,9.87590886]
[1752691572273,3.24,174.27,174.26,11.38590886]
[1752691572572,3.24,174.27,174.26,9.87590886]
[1752691572969,3.24,174.27,174.26,4.14110886]
[1752691573366,3.24,174.27,174.26,5.65110886]
[1752691574069,3.24,174.27,174.26,11.38590886]
[1752691574667,3.24,174.27,174.26,4.14110886]
[1752691576475,3.24,174.27,174.26,11.38590886]
[1752691577374,3.24,174.27,174.26,4.14110886]
[1752691578789,3.31,174.26,174.25,1.51]
[1752691578973,3.31,174.26,174.25,5.65110886]
[1752691579770,3.31,174.26,174.25,11.38610886]
[1752691579974,5.7343,174.28,174.25,9.87610886]
[1752691580272,5.7343,174.28,174.27,4.14110886]
[1752691580464,18.53622297,174.29,174.27,4.14110886]
[1752691580663,3.31,174.28,174.27,5.65110886]
[1752691581269,3.31,174.28,174.27,11.38550886]
[1752691581664,3.31,174.28,174.27,4.14110886]
[1752691582275,3.31,174.28,174.27,9.87560886]
[1752691585072,3.31,174.28,174.27,4.14110886]
[1752691585674,3.31,174.28,174.27,9.87560886]
[1752691586079,19.20388859,174.33,174.27,243.14323532]
[1752691586376,3.31,174.35,174.32,4.14323532]
[1752691586579,5.7322,174.34,174.32,4.14323532]
[1752691586767,3.31,174.33,174.32,4.14323532]
[1752691586967,3.31,174.33,174.31,4.14269339]
[1752691587569,9.0425,174.33,174.29,7.2437]
[1752691587777,3.31,174.32,174.29,4.14269339]
[1752691588575,3.31,174.32,174.29,5.65269339]
[1752691588781,3.31,174.32,174.31,4.14269339]
[1752691588980,3.31,174.32,174.31,0.97336388]
[1752691589170,3.31,174.32,174.29,4.14269339]
[1752691589577,5.7334,174.31,174.29,4.14269339]
[1752691589777,3.31,174.3,174.29,4.14269339]
[1752691590281,9.0435,174.3,174.29,4.14269339]
[1752691593682,9.0435,174.3,174.27,9.87699339]
[1752691593982,3.31,174.29,174.27,9.87699339]
[1752691594283,3.31,174.29,174.27,11.38699339]
[1752691594582,3.31,174.28,174.27,5.65269339]
[1752691594774,3.31,174.28,174.24,1.51]
[1752691595180,3.31,174.27,174.24,1.51]
[1752691595882,3.31,174.25,174.24,7.2452]
[1752691596584,3.31,174.25,174.24,1.51]
[1752691597386,3.31,174.25,174.24,7.2454]
[1752691597584,3.31,174.25,174.23,4.14269339]
[1752691597785,3.31,174.25,174.23,5.65269339]
[1752691597985,5.7348,174.27,174.23,11.38819339]
[1752691598186,3.31,174.26,174.23,11.38819339]
[1752691598579,3.31,174.26,174.24,5.7354]
[1752691599082,3.31,174.26,174.24,7.2454]
[1752691599283,3.31,174.25,174.23,9.87839339]
[1752691599479,3.31,174.24,174.23,7.2457]
[1752691599679,5.7364,174.22,174.2,178.58]
[1752691599886,4.14269339,174.29,174.19,82.58405718]
[1752691599887,3.31,174.2,174.19,82.58405718]
[1752691600487,12.8630308,174.28,174.19,82.58405718]
[1752691600488,3.31,174.21,174.2,7.2466]
[1752691600688,3.31,174.21,174.2,5.65269339]
[1752691600988,3.31,174.28,174.21,1.51]
[1752691601283,3.31,174.28,174.25,4.14269339]
[1752691601488,3.31,174.28,174.25,1.51]
[1752691601787,3.31,174.28,174.24,5.65269339]
[1752691602481,3.31,174.27,174.24,5.65269339]
[1752691602886,22.73272419,174.34,174.26,4.14269339]
[1752691603188,18.5970308,174.29,174.26,4.14269339]
[1752691603387,3.31,174.28,174.26,4.14269339]
[1752691603591,3.31,174.27,174.26,0.98823938]
[1752691604689,3.31,174.3,174.27,1.51]
[1752691604884,12.8630308,174.32,174.29,4.14424911]
[1752691605188,12.8630308,174.32,174.3,1.51]
[1752691605384,12.8630308,174.33,174.3,1.51]
[1752691605586,3.31,174.31,174.3,1.51]
[1752691605886,3.31,174.31,174.3,11.38599086]
[1752691606081,3.31,174.33,174.3,5.65249086]
[1752691606281,16.1730308,174.33,174.3,4.14249086]
[1752691606590,3.31,174.31,174.3,4.14249086]
[1752691607189,3.31,174.31,174.28,7.2439]
[1752691607190,3.12,174.31,174.28,1.51]
[1752691607383,3.12,174.31,174.3,4.14249086]
[1752691607985,18.5957308,174.33,174.28,5.7341]
[1752691608181,3.12,174.32,174.3,4.14249086]
[1752691608490,3.12,174.31,174.3,5.64249086]
[1752691608680,3.12,174.33,174.31,1.5]
[1752691608882,12.8630308,174.35,174.33,1.5]
[1752691609081,3.12,174.37,174.34,4.14249086]
[1752691609288,3.12,174.37,174.36,4.14249086]
[1752691610795,3.12,174.37,174.36,5.64249086]
[1752691611396,3.12,174.39,174.37,1.5]
[1752691612192,8.8506,174.39,174.37,1.5]
[1752691612383,3.12,174.39,174.36,4.14249086]
[1752691612888,3.12,174.38,174.36,4.14249086]
[1752691613093,3.12,174.37,174.36,4.14249086]
[1752691613394,3.12,174.37,174.36,5.64249086]
[1752691615192,3.12,174.37,174.36,4.14249086]
[1752691615889,3.12,174.37,174.36,5.64249086]
[1752691616193,3.12,174.36,174.35,1.5]
[1752691617396,3.12,174.36,174.35,5.64249086]
[1752691618596,3.12,174.36,174.35,11.37429086]
[1752691618796,3.12,174.36,174.35,5.64249086]
[1752691623305,5.7308,174.39,174.35,11.37429086]
[1752691623507,3.12,174.37,174.36,1.5]
[1752691623707,3.12,174.37,174.36,5.64249086]
[1752691625106,3.12,174.37,174.36,11.37399086]
[1752691625307,3.12,174.39,174.36,11.37399086]
[1752691625501,3.12,174.39,174.38,4.14249086]
[1752691626602,3.12,174.39,174.36,1.5]
[1752691626894,3.12,174.39,174.37,4.14249086]
[1752691628802,3.12,174.39,174.37,5.65249086]
[1752691629108,3.12,174.44,174.37,5.65249086]
[1752691629703,5.7302,174.4,174.37,4.14249086]
[1752691629901,3.12,174.39,174.37,4.14249086]
[1752691630308,3.12,174.39,174.36,7.2415]
[1752691630811,3.12,174.39,174.38,4.14249086]
[1752691631815,5.7305,174.39,174.35,5.7317]
[1752691632014,3.12,174.38,174.34,1.51]
[1752691632216,3.12,174.38,174.35,4.14249086]
[1752691632729,3.12,174.36,174.35,4.14249086]
[1752691632916,3.12,174.36,174.35,5.65249086]
[1752691633223,3.12,174.36,174.35,4.14249086]
[1752691633629,5.7314,174.37,174.35,5.65249086]
[1752691633828,3.12,174.36,174.35,5.65249086]
[1752691634029,3.12,174.36,174.35,4.14249086]
[1752691634329,8.8515,174.36,174.35,4.14249086]
[1752691634837,3.12,174.38,174.31,416.68]
[1752691635125,3.12,174.38,174.31,4.14249086]
[1752691635329,4.14249086,174.37,174.29,4.14249086]
[1752691635526,3.12,174.36,174.29,4.14249086]
[1752691636025,3.12,174.31,174.29,4.14249086]
[1752691636230,3.12,174.31,174.3,1.51]
[1752691636930,5.7331,174.31,174.29,4.14249086]
[1752691637131,3.41,174.3,174.29,5.65249086]
[1752691637729,9.1435,174.3,174.29,5.65249086]
[1752691637929,9.1435,174.3,174.29,4.14249086]
[1752691638826,3.41,174.3,174.29,4.14249086]
[1752691639331,9.1435,174.3,174.29,4.14249086]
[1752691640931,3.41,174.3,174.29,4.14249086]
[1752691641341,3.41,174.3,174.29,5.65249086]
[1752691641526,9.1435,174.3,174.27,7.2443]
[1752691641727,3.41,174.29,174.28,1.51]
[1752691642119,3.41,174.29,174.27,4.14249086]
[1752691642522,12.8630308,174.34,174.27,4.14249086]
[1752691642727,3.41,174.32,174.27,4.14249086]
[1752691643128,5.734,174.29,174.27,4.14249086]
[1752691643319,3.41,174.28,174.27,4.14249086]
[1752691643723,3.41,174.28,174.27,5.65249086]
[1752691643933,3.41,174.28,174.26,420.72249086]
[1752691644123,3.41,174.27,174.26,422.23249086]
[1752691644322,3.41,174.27,174.26,183.23249086]
[1752691644723,3.41,174.27,174.26,179.09]
[1752691644925,3.41,174.27,174.26,183.23249086]
[1752691645135,3.41,174.27,174.26,188.96729086]
[1752691645435,3.41,174.27,174.26,183.23249086]
[1752691646035,3.41,174.27,174.26,179.09]
[1752691646237,3.41,174.27,174.26,183.23249086]
[1752691646538,3.41,174.27,174.26,181.72249086]
[1752691646928,3.41,174.27,174.26,177.58]
[1752691647326,3.41,174.27,174.24,177.36]
[1752691647630,3.41,174.25,174.24,177.36]
[1752691648136,9.1451,174.25,174.24,177.36]
[1752691648534,3.41,174.24,174.22,1.51]
[1752691648837,9.1454,174.24,174.23,4.14249086]
[1752691649036,5.7354,174.24,174.23,4.14249086]
[1752691649236,5.7354,174.24,174.22,1.51]
[1752691649237,12.8630308,174.3,174.22,1.51]
[1752691649539,3.41,174.29,174.23,4.14249086]
[1752691650228,16.2730308,174.29,174.21,177.34]
[1752691650431,3.41,174.28,174.22,4.14249086]
[1752691650929,5.7357,174.24,174.22,4.14249086]
[1752691651124,3.41,174.23,174.21,177.34]
[1752691651331,3.41,174.23,174.21,182.99249086]
[1752691651532,3.41,174.28,174.21,182.99249086]
[1752691652135,3.41,174.22,174.21,178.85]
[1752691652340,3.41,174.22,174.21,177.34]
[1752691652646,3.41,174.19,174.17,178.81]
[1752691652938,3.41,174.19,174.18,4.14249086]
[1752691653534,384.78777719,174.45,174.19,3.27]
[1752691653535,4.14249086,174.27,174.19,3.27]
[1752691653735,4.14249086,174.28,174.21,3.27]
[1752691654437,4.14249086,174.28,174.2,4.14249086]
[1752691654744,4.14249086,174.26,174.19,3.27]
[1752691655038,4.14249086,174.26,174.18,4.14249086]
[1752691655231,5.737,174.2,174.18,7.41249086]
[1752691655436,5.737,174.2,174.19,3.27]
[1752691655638,9.147,174.2,174.19,3.27]
[1752691655835,9.147,174.2,174.17,184.71249086]
[1752691656036,3.41,174.19,174.18,3.27]
[1752691656237,3.41,174.19,174.18,7.41249086]
[1752691657532,3.41,174.2,174.19,3.27]
[1752691657937,3.41,174.22,174.19,3.27]
[1752691658133,3.41,174.26,174.18,3.27]
[1752691658336,3.41,174.26,174.19,3.27]
[1752691659135,5.7367,174.21,174.18,4.14249086]
[1752691659341,3.41,174.2,174.18,4.14249086]
[1752691659541,3.41,174.2,174.19,4.14249086]
[1752691659738,3.41,174.2,174.19,7.41249086]
[1752691661244,3.41,174.3,174.19,4.14249086]
[1752691661453,4.14249086,174.28,174.21,4.14249086]
[1752691661647,3.41,174.27,174.21,7.41249086]
[1752691662346,9.1461,174.22,174.21,3.27]
[1752691662543,4.14249086,174.24,174.16,3.27]
[1752691662755,5.7373,174.19,174.17,3.27]
[1752691663050,5.7373,174.19,174.16,4.14249086]
[1752691663051,9.1473,174.19,174.16,4.14249086]
[1752691663250,9.1467,174.21,174.18,4.14249086]
[1752691663453,24.3304308,174.3,174.2,7.41249086]
[1752691663454,3.41,174.23,174.2,7.41249086]
[1752691663644,3.41,174.23,174.21,3.27]
[1752691663953,9.1461,174.22,174.21,3.27]
[1752691664450,5.7368,174.2,174.19,7.41249086]
[1752691664651,3.41,174.26,174.2,3.27]
[1752691664844,3.41,174.26,174.18,7.41249086]
[1752691665046,3.41,174.26,174.19,3.27]
[1752691665242,3.41,174.26,174.18,4.14249086]
[1752691665448,3.41,174.2,174.09,3.27]
[1752691665657,3.41,174.18,174.09,4.14249086]
[1752691665849,3.41,174.18,174.1,3.27]
[1752691666153,3.41,174.18,174.12,3.27]
[1752691666654,5.7391,174.13,174.12,3.27]
[1752691666857,8.9791,174.13,174.12,3.27]
[1752691667556,5.7394,174.12,174.11,4.14249086]
[1752691667751,3.24,174.12,174.11,7.25249086]
[1752691668152,5.7398,174.11,174.08,3.11]
[1752691668356,8.9798,174.11,174.1,7.25249086]
[1752691668553,8.9798,174.11,174.1,4.14249086]
[1752691668749,3.24,174.13,174.02,3.11]
[1752691668948,3.24,174.13,174.06,4.14249086]
[1752691669260,3.24,174.13,174.09,3.11]
[1752691669447,5.7403,174.1,174.09,3.11]
[1752691669652,8.9803,174.1,174.09,3.11]
[1752691669955,5.7403,174.1,174.09,7.25249086]
[1752691670256,8.9803,174.1,174.09,7.25249086]
[1752691671457,3.24,174.09,174.08,7.25249086]
[1752691672059,8.9805,174.09,174.08,7.25249086]
[1752691672264,3.24,174.09,174.06,4.14249086]
[1752691672450,3.24,174.09,174.04,7.25249086]
[1752691672650,5.7417,174.05,174.04,4.14249086]
[1752691672855,8.9817,174.05,174.04,4.14249086]
[1752691673166,8.9817,174.05,174.04,7.25249086]
[1752691673558,3.24,174.05,174.04,7.25249086]
[1752691674055,8.9817,174.05,174.04,3.11]
[1752691674250,4.14249086,174.12,174.02,7.25249086]
[1752691674461,3.24,174.09,174.02,7.25249086]
[1752691674665,3.24,174.09,174.02,4.14249086]
[1752691674860,8.9822,174.04,174.03,3.11]
[1752691675060,3.24,174.04,174.03,3.11]
[1752691676161,3.24,174.12,174.04,3.11]
[1752691676368,3.24,174.12,174.04,7.25249086]
[1752691677064,8.9814,174.06,174.05,3.11]
[1752691677359,8.9814,174.06,174.04,4.14249086]
[1752691677664,3.24,174.05,174.04,4.14249086]
[1752691678166,8.9817,174.05,174.04,4.14249086]
[1752691678666,9.87549086,174.15,174.02,3.11]
[1752691678667,3.24,174.09,174.02,3.11]
[1752691678963,3.24,174.09,174.02,7.25249086]
[1752691679561,3.24,174.03,174.02,7.25249086]
[1752691679966,3.24,174.03,174.02,3.11]
[1752691680156,3.24,174.03,174.02,7.25249086]
[1752691680357,8.9824,174.03,174.02,7.25249086]
[1752691680660,4.14249086,174.08,174.01,4.14249086]
[1752691680855,5.7434,174.0,173.94,424.08984196]
[1752691681060,3.24,174.03,173.95,5.745]
[1752691681365,3.24,174.01,173.94,185.08984196]
[1752691681568,3.24,174.01,173.94,3.11]
[1752691681859,7.38249086,174.01,173.92,12.99839086]
[1752691682061,3.24,174.0,173.92,12.99839086]
[1752691682262,3.24,174.0,173.93,3.11]
[1752691682466,3.24,174.0,173.93,7.25249086]
[1752691682664,5.7445,173.97,173.93,7.25249086]
[1752691682864,3.24,173.95,173.94,3.11]
[1752691683161,8.9852,173.95,173.94,3.11]
[1752691683361,38.56249086,174.15,173.94,3.11]
[1752691683362,3.24,174.05,173.94,3.11]
[1752691683562,3.24,174.05,173.99,4.14249086]
[1752691683957,3.24,174.0,173.97,3.11]
[1752691684154,3.24,173.98,173.94,3.11]
[1752691684355,3.24,173.94,173.92,78.39601848]
[1752691684561,3.24,173.99,173.92,78.39601848]
[1752691684767,3.24,173.99,173.92,75.28601848]
[1752691685156,500.16249086,174.06,173.92,75.28601848]
[1752691685157,3.24,173.97,173.92,75.28601848]
[1752691685360,3.24,173.97,173.9,3.11]
[1752691685566,3.24,173.89,173.88,7.25249086]
[1752691685966,3.24,173.91,173.9,3.11]
[1752691686363,3.24,173.9,173.89,3.11]
[1752691686572,5.7469,173.9,173.88,4.14249086]
[1752691686874,3.24,173.89,173.84,178.06040246]
[1752691687071,8.9873,173.88,173.87,4.14249086]
[1752691687265,3.24,173.91,173.85,3.11]
[1752691687462,3.24,173.9,173.85,3.11]
[1752691687665,8.988,173.86,173.85,3.11]
[1752691687862,4.14249086,173.92,173.83,4.14249086]
[1752691688063,4.14249086,173.88,173.7,35.58673275]
[1752691688369,3.24,173.85,173.79,3.11]
[1752691688565,5.7492,173.83,173.79,7.25249086]
[1752691688767,3.24,173.85,173.78,5.7506]
[1752691688768,3.24,173.85,173.78,3.11]
[1752691689188,8.9898,173.81,173.77,3.11]
[1752691689471,3.24,173.81,173.79,3.11]
[1752691689670,5.7506,173.79,173.76,4.14249086]
[1752691689981,3.24,173.81,173.72,20.0]
[1752691690283,3.24,173.79,173.72,20.0]
[1752691690585,3.24,173.76,173.72,20.0]
[1752691690781,3.24,173.73,173.72,20.0]
[1752691691278,496.22,173.84,173.72,24.14249086]
[1752691691571,3.24,173.79,173.72,20.0]
[1752691691776,4.14249086,173.77,173.72,20.0]
[1752691691979,3.24,173.76,173.72,20.0]
[1752691692178,4.14249086,173.75,173.72,20.0]
[1752691692388,13.13479086,173.73,173.72,7.3113]
[1752691692675,4.14249086,173.73,173.65,3.11]
[1752691693070,4.14249086,173.79,173.65,3.11]
[1752691693071,4.14249086,173.71,173.65,3.11]